Cogmind - Beta 15 @@@ ROGUE MODE // 2025.05.10 @ 13:55:34 Player: Lunace Result: Destroyed by 9S-J32(R) with Subdweller Machine Gun Performance ------------- Evolutions (0) 0 Regions Visited (2) 400 Robots Destroyed (4) 20 Value Destroyed (61) 61 Prototype IDs (0) 0 Alien Tech Used (0) 0 Bonus (0) 0 TOTAL SCORE: 481 Bonus ------- None Cogmind --------- Core Integrity 0/250 Matter 280/300 Energy 240/250 System Corruption 0% Temperature Cool (0) Movement Rolling (110) Location -10/Subcaves Parts ------- > --- POWER (1) -------- Ion Engine > --- PROPULSION (2) --- Subdweller Monowheel > --- UTILITY (2) ------ Small Storage Unit > --- WEAPON (2) ------- Subdweller Beam Cannon > --- INVENTORY (8) ---- Scrap Shield Fragment (45) Scrap Shield Fragment (45) Peak State ------------ > --- POWER ------------ Ion Engine > --- PROPULSION ------- Light Treads Light Treads > --- UTILITY ---------- Small Storage Unit Seismic Detector > --- WEAPON ----------- Mining Laser Flamer > --- INVENTORY -------- Medium Laser Light Assault Rifle [Rating: 8] Favorites ----------- Power Ion Engine Engine Ion Engine Propulsion Light Treads Treads Light Treads Wheel Subdweller Monowheel Utility Small Storage Unit Device Seismic Detector Storage Small Storage Unit Weapon Medium Laser Energy Gun Medium Laser Energy Cannon Subdweller Beam Cannon Ballistic Gun Light Assault Rifle Special Weapon Mining Laser Build | -11 -10 -10 ------- Run | Yrd Mat Sub Slots Evolved . | . . . Power . | . . . Propulsion . | . . . Utility . | . . . Weapon . | . . . Parts Attached 11 | 7 1 3 Power 1 | 1 . . Engine 1 | 1 . . Core . | . . . Reactor . | . . . Propulsion 3 | 2 . 1 Treads 2 | 2 . . Leg . | . . . Wheel 1 | . . 1 Hover . | . . . Flight . | . . . Utility 2 | 2 . . Device 1 | 1 . . Storage 1 | 1 . . Processor . | . . . Hackware . | . . . Protection . | . . . Artifact . | . . . Weapon 5 | 2 1 2 Energy Gun 1 | 1 . . Energy Cannon 1 | . . 1 Ballistic Gun 1 | 1 . . Ballistic Cannon . | . . . Launcher . | . . . Special Weapon 2 | . 1 1 Impact Weapon . | . . . Slashing Weapon . | . . . Piercing Weapon . | . . . Special Melee Weapon . | . . . Unidentified Prototypes . | . . . Parts Lost 7 | . . 7 Power . | . . . Propulsion 2 | . . 2 Utility 1 | . . 1 Weapon 4 | . . 4 Highest Loss Streak 7 | . . 7 To Critical Strikes . | . . . Average Backups . | . 1 1 Power . | . . . Propulsion . | . . . Utility . | . . . Weapon . | . 1 1 Tool/Special . | . . . Unused Backups . | . . . Power . | . . . Propulsion . | . . . Utility . | . . . Weapon . | . . . Tool/Special . | . . . Average Slot Usage (%) 92 | . 100 89 Engine 14 | . 14 14 Treads 26 | . 28 25 Device 11 | . 14 11 Storage 14 | . 14 14 Energy Gun 11 | . 14 10 Ballistic Gun 9 | . 12 8 Special Weapon 3 | . 1 4 Peak Build Rating 8 | 7 7 8 Average Rating 6 | 5 7 6 On Entrance 4 | . 7 7 Naked Turns . | . . . Heaviest Build 18 | 14 14 18 Greatest Support 40 | 40 40 40 Greatest Overweight (x) 2 | 2 . . Average Overweight (x) . | . . . Largest Inventory Capacity 8 | 8 8 8 Average Capacity 7 | 7 8 8 Most Carried 4 | 1 1 4 Average Carried 1 | . 1 1 Final Capacity 8 | 8 8 8 Final Carried 2 | 1 1 2 Class Distribution -------------------- 100% | Mutant Dominant Class ---------------- Mutant | -10/Materials Mutant | -10/Subcaves Resources | -11 -10 -10 ----------- Run | Yrd Mat Sub Matter Collected 330 | 267 9 54 Remotely . | . . . Salvage Created 114 | 69 . 45 Parts 10 | 8 . 2 Haulers Intercepted . | . . . Recyclers Shooed 1 | 1 . . Parts Field Recycled . | . . . Retrieved Matter . | . . . Parts Self-Destructed 2 | . . 2 Prevented . | . . . Kills | -11 -10 -10 ------- Run | Yrd Mat Sub Combat Hostiles Destroyed 1 | . . 1 Guns 1 | . . 1 Classes Destroyed 2 | 1 . 1 Tunneler 3 | 3 . . Subdweller 1 | . . 1 Best Kill Streak 2 | 2 . 1 Combat Bots Only 1 | . . 1 Max Kills in Single Turn 1 | 1 . 1 Gunslinging . | . . . Exploded . | . . . Melee . | . . . Uniques/NPCs Destroyed . | . . . Combat | -11 -10 -10 -------- Run | Yrd Mat Sub Hostile Shots Fired 59 | . . 59 Missed 18 | . . 18 Hits 41 | . . 41 Projectile 41 | . . 41 Critical Strikes 1 | . . 1 Damage Taken 851 | . . 851 Core 259 | . . 259 Absorbed by Shields . | . . . Core Remaining (%) 100 | 100 . . Volleys Fired 34 | 6 2 26 Largest 2 | 2 1 2 Hottest 150 | 70 100 150 Shots Fired 55 | 12 2 41 Gun 43 | 12 . 31 Cannon 2 | . . 2 Launcher . | . . . Special 10 | . 2 8 Kinetic 18 | 6 . 12 Thermal 37 | 6 2 29 Explosive . | . . . Electromagnetic . | . . . Robot Hit Streak 16 | 4 . 16 Robot Miss Streak 2 | 2 . 2 Penetration Max . | . . . Secondary Targets 1 | . . 1 Max Gunslinging Chain 1 | . . 1 Shots Hit Robots 38 | 6 . 32 Core Hits 8 | 4 . 4 Critical Kills . | . . . Critical Parts Destroyed . | . . . Critical Strikes 2 | 1 . 1 Burn 2 | 1 . 1 Melee Attacks . | . . . Impact . | . . . Slashing . | . . . Piercing . | . . . Sneak Attacks . | . . . Combat Hostiles . | . . . Follow-up Attacks . | . . . Damage Inflicted 215 | 75 . 140 Guns 192 | 75 . 117 Cannons . | . . . Explosions . | . . . Melee . | . . . Ramming 3 | . . 3 Kinetic 52 | 23 . 29 Thermal 160 | 52 . 108 Explosive . | . . . Electromagnetic . | . . . Impact . | . . . Slashing . | . . . Piercing . | . . . Highest Corruption . | . . . Average Corruption . | . . . Corruption Purged . | . . . Corruption Blocked . | . . . Overload Shots . | . . . Overflow Damage . | . . . Projectiles . | . . . Explosions . | . . . Melee . | . . . Knockbacks 1 | . . 1 Impact 1 | . . 1 Kinetic . | . . . Secondary . | . . . Self-Inflicted Damage . | . . . Shots . | . . . Rammed 2 | . . 2 Targets Rammed 2 | . . 2 Kicked . | . . . Crushed . | . . . Highest Temperature 60 | 60 20 3 Average Temperature 17 | 27 10 1 Received Heat Transfer 54 | . . 54 Siege Activations . | . . . Martial Activations . | . . . Shielding Activations . | . . . Robots Disrupted . | . . . Combat Hostiles . | . . . Robots Corrupted . | . . . Combat Hostiles . | . . . Parts Fried . | . . . Impact Corruptions . | . . . Robots Melted . | . . . Combat Hostiles . | . . . Parts Melted 1 | 1 . . Heat Transferred 801 | 222 . 579 Parts Sabotaged . | . . . Parts Stolen . | . . . Parts Stripped . | . . . Power Chain Reactions . | . . . Alert | -11 -10 -10 ------- Run | Yrd Mat Sub Maximum Alert Level . | . . . Low Security (%) 100 | 100 100 . Level 1 . | . . . Level 2 . | . . . Level 3 . | . . . Level 4 . | . . . Level 5 . | . . . High Security . | . . . Max Security . | . . . Peak Influence 7 | 5 7 . Initial . | . . . Average 1 | 1 1 . Influence Increases 22 | 15 7 . Destroy 0b10 Robot/NC 15 | 15 . . Successful Hack 7 | . 7 . Influence Decreases 22 | 15 7 . Time Decay 22 | 15 7 . Squads Dispatched 1 | . 1 . Investigation . | . . . Extermination . | . . . Reinforcement 1 | . 1 . Assault . | . . . Garrison . | . . . Intercept . | . . . Searches Triggered . | . . . Construction Impeded . | . . . Haulers Reinforced . | . . . Active Scanning Responses . | . . . Cargo Convoy Interrupts . | . . . Stealth | -11 -10 -10 --------- Run | Yrd Mat Sub Distress Signals . | . . . Communications Jammed . | . . . Distress Signals . | . . . Times Spotted 3 | . 1 2 Peak Tracking Total 2 | . 1 2 Tactical Retreats . | . . . Traps | -11 -10 -10 ------- Run | Yrd Mat Sub Traps Triggered . | . . . Indirectly . | . . . Trap Hack Attempts . | . . . Triggered . | . . . Disarmed . | . . . Reprogrammed . | . . . Reused . | . . . Traps Extracted . | . . . Installed . | . . . Triggered . | . . . Machines | -11 -10 -10 ---------- Run | Yrd Mat Sub Machines Disabled . | . . . Max in Single Turn . | . . . Machines Repaired . | . . . Machines Dismantled . | . . . Machines Sabotaged . | . . . Overloaded Fab Kills . | . . . Hacking | -11 -10 -10 --------- Run | Yrd Mat Sub Machines Accessed 1 | . 1 . Terminals 1 | . 1 . Fabricators . | . . . Repair Stations . | . . . Recycling Units . | . . . Scanalyzers . | . . . Garrison Access . | . . . Total Hacks 3 | . 3 . Successful 2 | . 2 . Failed 1 | . 1 . Catastrophic . | . . . Database Lockouts . | . . . Manual 2 | . 2 . Terminals 3 | . 3 . Fabricators . | . . . Repair Stations . | . . . Recycling Units . | . . . Scanalyzers . | . . . Garrison Access . | . . . Terminal Hacks 1 | . 1 . Recall Investigation 1 | . 1 . Fabricator Hacks . | . . . Repair Station Hacks . | . . . Recycling Unit Hacks . | . . . Scanalyzer . | . . . Garrison Access Hacks . | . . . Unauthorized Hacks 1 | . 1 . Terminals 1 | . 1 . Botnet 1 | . 1 . Fabricators . | . . . Repair Stations . | . . . Recycling Units . | . . . Scanalyzers . | . . . Garrison Access . | . . . Data Cores Recovered . | . . . Used . | . . . Hacking Detections 1 | . 1 . Full Trace Events . | . . . Feedback Events . | . . . Feedback Blocked . | . . . Robot Schematics Acquired . | . . . Robots Built . | . . . Authchips . | . . . Time . | . . . Total Robot Build Rating . | . . . Part Schematics Acquired . | . . . Parts Built . | . . . Authchips . | . . . Time . | . . . Total Part Build Rating . | . . . Parts Repaired . | . . . Time . | . . . Parts Recycled . | . . . Recycled Matter . | . . . Retrieved Matter . | . . . Retrieved Components . | . . . Parts Scanalyzed . | . . . Part Schematics Acquired . | . . . Parts Damaged . | . . . Bothacking | -11 -10 -10 ------------ Run | Yrd Mat Sub Used RIF Installer . | . . . Robots Hacked . | . . . Non-combat . | . . . Combat . | . . . Robot Hacks Applied . | . . . Relay Couplers Released . | . . . Fabnet Peak Effective % . | . . . Robots Rewired . | . . . Allies Hacked . | . . . Hacks Repelled . | . . . Allies | -11 -10 -10 -------- Run | Yrd Mat Sub Total Allies . | . . . Largest Group . | . . . Highest-Rated Group . | . . . Highest-Rated Ally . | . . . Total Orders . | . . . Ally Attacks . | . . . Total Damage . | . . . Kills . | . . . Allies Corrupted . | . . . Allies Melted . | . . . Intel | -11 -10 -10 ------- Run | Yrd Mat Sub Active Infowar (turns) 345 | 15 116 214 Seismic 345 | 15 116 214 Robot Analysis Total . | . . . Derelict Logs Recovered . | . . . Drone Launches . | . . . Drone Recoveries . | . . . Exploration | -11 -10 -10 ------------- Run | Yrd Mat Sub Turns Passed 487 | 92 116 279 Spaces Moved 226 | 43 67 116 Core 6 | 6 . . Treads 214 | 37 67 110 Legs . | . . . Wheels 6 | . . 6 Hover . | . . . Flight . | . . . Fastest Speed 50 | 50 160 110 Average Speed 157 | 151 160 157 Slowest Speed 160 | 160 160 160 Overloaded Moves . | . . . Propulsion Burnouts . | . . . Robots Hopped . | . . . Potential Cave-ins . | . . . Cave-ins Triggered . | . . . Exploration Rate (%) 11 | 4 18 13 Regions Visited 2 Branch Regions 1 Pre-discovered Areas . | . . . Known Exits Taken . | . . . Unknown Exits Taken 2 | 1 1 . Scrap Searched . | . . . Spaces Dug . | . . . Terrain Destroyed . | . . . Melee . | . . . Projectile . | . . . AOE . | . . . Terrain Rammed . | . . . Walls Destroyed . | . . . Machines Disabled . | . . . Actions | -11 -10 -10 --------- Run | Yrd Mat Sub Total 285 | 56 69 160 Wait 4 | . . 4 Move 224 | 42 66 116 Hop . | . . . Pick Up 4 | 1 . 3 Fast Attach 9 | 7 . 2 Attach 3 | . . 3 Detach 1 | . . 1 Swap 4 | . 1 3 Drop . | . . . Fire 34 | 6 2 26 Melee . | . . . Ram . | . . . Kick . | . . . Crush 2 | . . 2 Escape Stasis . | . . . Rewire . | . . . Trap . | . . . Miscellaneous . | . . . Route ------- -11/Scrapyard -10/Materials -10/Subcaves History --------- Turn | Location | Event 30 | -11/Scrapyard | Discovered new exit (range 16) 93 | -11/Scrapyard | Entered Materials 203 | -10/Materials | Discovered new exit (range 3) 209 | -10/Materials | Entered Subcaves 210 | -10/Subcaves | Approached by a straggling Scientist 306 | -10/Subcaves | Build established: Mutant 309 | -10/Subcaves | Shifting Twisted Machinery released Sub. Optics 311 | -10/Subcaves | A swath of the cavern ceiling suddenly collapsed 340 | -10/Subcaves | Shifting Twisted Machinery released Flamer 456 | -10/Subcaves | Core integrity fell below 50% 466 | -10/Subcaves | Shifting Twisted Machinery released Sub. Beam Cannon 466 | -10/Subcaves | Core integrity fell below 20% 488 | -10/Subcaves | Destroyed by 9S-J32(R) with Subdweller Machine Gun Last Messages --------------- 00424_ D9-QK9(R) destroyed. 00424_ Switching to secondary target: 9S-J32(R). 00426_ Subatomizers dissect the Sub. Monowheel. 00428_ Med. Laser destroyed. 00432_ Lgt. Assault Rifle destroyed. 00436_ Acquired Sub. Monowheel. 00439_ Slammed into 9S-J32(R). 00440_ Acquired 29 matter. 00442_ Acquired Scrap Shield Fragment. 00447_ Lgt. Treads destroyed. 00448_ Acquired 5 matter. 00452_ Slammed into 9S-J32(R). 00452_ 9S-J32(R) knocked back. 00453_ Mining Laser destroyed. XM-N6Z(c): "I think it's somewhere north of here" Sub. Beam Cannon falls loose from the Twisted Machinery. 00475_ Lgt. Treads destroyed. 00481_ Acquired Sub. Beam Cannon. Map ----- +----------------------------------------------------+ | ?????????????????????????????????????????????????? | | ?????????????????????????????????????????????????? | | ?????????????????????????????????????????????????? | | ?????????????????????????????????????????????????? | | ?????????????????????????????????????????????????? | | ?????????????????????????????????????????????????? | | ?????????????????????????????????????????????????? | | ?????????????????????????????????????????????????? | | ?????????????????????????????????????????????????? | | ?????????????????????????????????????????????????? | | ?????????????????????????????????????????????????? | | ?????????????????????????????????????????????????? | | ?????????????????????????????????????????????????? | | ?????????????????????????????????????????????????? | | ?????????????????????????????????????????????????? | | ?????????????????????????????????????????????????? | | ?????????????????????#???????????????????????????? | | ????????????????????? ##?????????????????????????? | | ????????????????????? ##????????????????????????? | | ?????????????????????# ????????????????????????? | | ????????????????????## ?????????????????????????? | | ???????????????????## ?????????????????????????? | | ???????????????????# #?????????????????????????? | | ????????????? ????## #####?????????????????????? | | ???????????? "#?### ###???????????????????? | | ??????????? " ?# R @ ##??????????????????? | | ????????????#" ?# " " #??????????????????? | | ??????##????#""## """" #??????????????????? | | ??????? #### " "" """##??????????????????? | | ??????? " " "" ###???????????????????? | | ??????# "" " "" ###?????????????????????? | | ??????# " "" """""#????????? ?????????????? | | ??????# " """" ##????????"#?????????????? | | ?????## " "" ##?????????"####??????????? | | ?????#"" "###?????????? " "##?????????? | | ?????# "####?????#### """ ##????????? | | ?????## ####### "" ##???##" #????????? | | ?????????????## "%% #####"" #????????? | | ?????????????# ! # "" #????????? | | ???????????# "" #?????????? | | ???????????## ### "" #??????????? | | ????????????## ##?# # " ###????????? | | ?????????????# #???# ### "" #????????? | | ?????????????###???# ### " ""##????????? | | ??????????????????# #?##"" ##""#?????????? | | ??????????????????# #??#"" #??"#?????????? | | ??????????????????## ###?##"" #?????????????? | | ???????????????????# ##???# " "#?????????????? | | ??????????????????? #????## "##?????????????? | | ??????????????????" """#???## " ##?????????????? | +----------------------------------------------------+ Best States ------------- Heat Dissipation 25 Energy Generation 10 Energy Capacity 250 Matter Stores 300 Matter Capacity 300 Sight Range 16 Terrain Scan Density 10 Evasion (%) 40 Recoil Reduction 2 Item Schematics ----------------- None Robot Schematics ------------------ None Fabricated ------------ Nothing Repaired ---------- Nothing Alien Tech Used ----------------- None Achievements -------------- None Challenges ------------ None Game ------ Seed ParticleStrikeSlayer Manual? 0 Play Time 00:04:56 Cumulative 394.9 hours Start 2025.05.10 @ 13:50:27 End 2025.05.10 @ 13:55:34 Sessions 1 Manual Loads 0 Difficulty Rogue Special Mode None Game No. 395 Rogue 390 Adventurer 5 Explorer 0 Win Type - Total 9 Types 6/0/0/3/0/0/0/0/0/0 Lore% 77 Gallery% 77 Achievement% 71 Wizard Run 0 Options --------- Layout 1 ASCII 0 Keyboard 0 Movement Mouse Keybinds 0 Fullscreen 1 Font 24/Terminus Map View 50x35 Zoom Use 0% Tactical HUD 1 Map Filters NONE Filters NONE Steam 1 RUN: 1358d750-ebfb-4c12-b803-7f667731d6e2